Cogmind - Beta 11 @@@ ROGUE MODE // 2022.04.15 @ 22:43:26 Player: Jezoensis Result: Destroyed by D-53 Grenadier with Mini Grenade Launcher Performance ------------- Evolutions (0) 0 Regions Visited (2) 400 Robots Destroyed (27) 135 Value Destroyed (403) 403 Prototype IDs (0) 0 Alien Tech Used (0) 0 Bonus (0) 0 TOTAL SCORE: 938 Bonus ------- None Cogmind --------- Core Integrity 0/250 Matter 259/300 Energy 100/100 System Corruption 0% Temperature Cool (0) Movement Core (300) Ox5 Location -10/Mines Parts ------- > --- POWER (1) -------- (None) > --- PROPULSION (2) --- (None) > --- UTILITY (2) ------ Medium Storage Unit Hacking Suite > --- WEAPON (2) ------- Assault Rifle Rocket Launcher > --- INVENTORY (10) --- Light Treads Light Treads Light Treads Heat Sink Machine Analyzer Improved Terrain Scan Processor Long-range Tractor Beam Mining Laser Peak State ------------ > --- POWER ------------ Light Deuterium Engine > --- PROPULSION ------- Light Treads Light Treads > --- UTILITY ---------- Medium Storage Unit Hacking Suite > --- WEAPON ----------- Heavy EM Pulse Gun Heavy EM Pulse Gun > --- INVENTORY -------- Light Treads Light Treads Light Treads Heat Sink Machine Analyzer Improved Terrain Scan Processor Long-range Tractor Beam Assault Rifle Grenade Launcher Mining Laser [Rating: 14] Favorites ----------- Power Ion Engine Engine Ion Engine Propulsion Light Treads Treads Light Treads Utility Hacking Suite Storage Medium Storage Unit Hackware Hacking Suite Weapon Heavy EM Pulse Gun Energy Gun Heavy EM Pulse Gun Ballistic Gun Assault Rifle Launcher Rocket Launcher Build | -11 -10 -10 ------- Run | Scr Mat Min Slots Evolved . | . . . Power . | . . . Propulsion . | . . . Utility . | . . . Weapon . | . . . Parts Attached 20 | 8 7 5 Power 3 | 1 1 1 Engine 3 | 1 1 1 Core . | . . . Reactor . | . . . Propulsion 3 | 3 . . Treads 3 | 3 . . Leg . | . . . Wheel . | . . . Hover . | . . . Flight . | . . . Utility 3 | 1 2 . Device . | . . . Storage 2 | 1 1 . Processor . | . . . Hackware 1 | . 1 . Protection . | . . . Artifact . | . . . Weapon 11 | 3 4 4 Energy Gun 7 | 2 3 2 Energy Cannon . | . . . Ballistic Gun 3 | 1 1 1 Ballistic Cannon . | . . . Launcher 1 | . . 1 Special Weapon . | . . . Impact Weapon . | . . . Slashing Weapon . | . . . Piercing Weapon . | . . . Special Melee Weapon . | . . . Unidentified Prototypes . | . . . Parts Lost 5 | . . 5 Power 1 | . . 1 Propulsion 2 | . . 2 Utility . | . . . Weapon 2 | . . 2 Highest Loss Streak 5 | . . 5 To Critical Strikes . | . . . Average Slot Usage (%) 98 | . 97 99 Engine 14 | . 14 14 Treads 27 | . 28 27 Storage 14 | . 14 14 Hackware 12 | . 11 14 Energy Gun 23 | . 24 22 Ballistic Gun 4 | . 3 5 Naked Turns . | . . . Heaviest Build 21 | 14 21 21 Greatest Support 40 | 40 40 40 Greatest Overweight (x) . | . . . Average Overweight (x) . | . . . Largest Inventory Capacity 10 | 8 10 10 Average Capacity 9 | 7 8 10 Most Carried 10 | 5 10 10 Average Carried 7 | 1 7 9 Final Capacity 10 | 8 10 10 Final Carried 10 | 2 10 8 Class Distribution -------------------- 100% | Mutant Dominant Class ---------------- Mutant | -10/Materials Mutant | -10/Mines Resources | -11 -10 -10 ----------- Run | Scr Mat Min Matter Collected 438 | 319 77 42 Remotely . | . . . Salvage Created 789 | 206 382 201 Parts 51 | 12 25 14 Haulers Intercepted 2 | . 2 . Recyclers Shooed 1 | . 1 . Parts Field Recycled . | . . . Retrieved Matter . | . . . Parts Self-Destructed . | . . . Prevented . | . . . Kills | -11 -10 -10 ------- Run | Scr Mat Min Combat Hostiles Destroyed 15 | . 6 9 Guns 12 | . 4 8 AOE 3 | . 2 1 Classes Destroyed 10 | 2 7 1 Worker 1 | . 1 . Tunneler 5 | 5 . . Hauler 2 | . 2 . Recycler 1 | 1 . . Mechanic 1 | . 1 . Operator 1 | . 1 . Watcher 1 | . 1 . Swarmer 10 | . 4 6 Grunt 4 | . 2 2 Demolisher 1 | . . 1 Best Kill Streak 3 | 3 3 3 Combat Bots Only 3 | . 2 3 Max Kills in Single Turn 2 | 1 2 1 Gunslinging . | . . . Exploded 1 | . 1 1 Melee . | . . . Uniques/NPCs Destroyed . | . . . Combat | -11 -10 -10 -------- Run | Scr Mat Min Damage Taken 871 | 25 152 694 Core 255 | . 28 227 Absorbed by Shields . | . . . Core Remaining (%) 100 | 100 . . Volleys Fired 48 | 13 18 17 Largest 2 | 2 2 2 Hottest 90 | 60 90 90 Shots Fired 93 | 26 35 32 Gun 91 | 26 35 30 Cannon . | . . . Launcher 2 | . . 2 Special . | . . . Kinetic 24 | 13 4 7 Thermal . | . . . Explosive 2 | . . 2 Electromagnetic 67 | 13 31 23 Robot Hit Streak 16 | 5 5 16 Robot Miss Streak 4 | 2 3 4 Penetration Max . | . . . Secondary Targets 1 | . . 1 Max Gunslinging Chain 1 | . . 1 Shots Hit Robots 54 | 17 18 19 Core Hits 32 | 7 13 12 Critical Kills . | . . . Critical Parts Destroyed . | . . . Critical Strikes . | . . . Melee Attacks . | . . . Impact . | . . . Slashing . | . . . Piercing . | . . . Sneak Attacks . | . . . Combat Hostiles . | . . . Follow-up Attacks . | . . . Damage Inflicted 1062 | 248 436 378 Guns 755 | 222 270 263 Cannons . | . . . Explosions 299 | 26 165 108 Melee . | . . . Ramming 8 | . 1 7 Kinetic 191 | 119 25 47 Thermal 273 | 26 165 82 Explosive 26 | . . 26 Electromagnetic 564 | 103 245 216 Impact . | . . . Slashing . | . . . Piercing . | . . . Highest Corruption . | . . . Average Corruption . | . . . Corruption Purged . | . . . Corruption Blocked . | . . . Overload Shots . | . . . Overflow Damage . | . . . Projectiles . | . . . Explosions . | . . . Melee . | . . . Knockbacks 1 | . . 1 Impact 1 | . . 1 Kinetic . | . . . Secondary . | . . . Self-Inflicted Damage 42 | 25 . 17 Shots 2 | 1 . 1 Rammed 3 | . 2 1 Targets Rammed 3 | . 2 1 Kicked . | . . . Crushed . | . . . Highest Temperature 165 | 12 120 165 Average Temperature 41 | 12 33 58 Received Heat Transfer 30 | . 12 18 Siege Activations . | . . . Robots Corrupted . | . . . Combat Hostiles . | . . . Parts Fried . | . . . Impact Corruptions . | . . . Robots Melted . | . . . Combat Hostiles . | . . . Parts Melted . | . . . Heat Transferred 300 | 50 150 100 Parts Sabotaged . | . . . Parts Stolen . | . . . Parts Stripped . | . . . Power Chain Reactions 5 | 1 3 1 Missiles Intercepted . | . . . Alert | -11 -10 -10 ------- Run | Scr Mat Min Peak Influence 278 | 30 278 233 Initial 19 | . 19 7 Average 86 | 16 100 94 Maximum Alert Level 1 | . 1 1 Low Security (%) 92 | 100 94 88 Level 1 7 | . 5 11 Level 2 . | . . . Level 3 . | . . . Level 4 . | . . . Level 5 . | . . . High Security . | . . . Max Security . | . . . Squads Dispatched 3 | . 2 1 Investigation 1 | . . 1 Extermination . | . . . Reinforcement 2 | . 2 . Assault . | . . . Garrison . | . . . Intercept . | . . . Searches Triggered . | . . . Construction Impeded . | . . . Haulers Reinforced . | . . . Active Scanning Responses . | . . . Cargo Convoy Interrupts . | . . . Stealth | -11 -10 -10 --------- Run | Scr Mat Min Distress Signals 2 | . 2 . Communications Jammed . | . . . Distress Signals . | . . . Times Spotted 28 | . 18 10 Peak Tracking Total 5 | . 5 3 Tactical Retreats 2 | . 2 . Traps | -11 -10 -10 ------- Run | Scr Mat Min Traps Triggered 1 | . 1 . Indirectly . | . . . Trap Hack Attempts . | . . . Triggered . | . . . Disarmed . | . . . Reprogrammed . | . . . Reused . | . . . Traps Extracted . | . . . Installed . | . . . Triggered . | . . . Machines | -11 -10 -10 ---------- Run | Scr Mat Min Machines Disabled 1 | . 1 . Max in Single Turn 1 | . 1 . Machines Sabotaged . | . . . Garrisons Compromised . | . . . Overloaded Fab Kills . | . . . Hacking | -11 -10 -10 --------- Run | Scr Mat Min Machines Accessed 5 | . 4 1 Terminals 4 | . 4 . Fabricators . | . . . Repair Stations . | . . . Recycling Units . | . . . Scanalyzers . | . . . Garrison Access . | . . . Total Hacks 16 | . 15 1 Successful 8 | . 7 1 Failed 7 | . 7 . Catastrophic . | . . . Database Lockouts 1 | . 1 . Manual 11 | . 11 . Terminals 15 | . 15 . Fabricators . | . . . Repair Stations . | . . . Recycling Units . | . . . Scanalyzers . | . . . Garrison Access . | . . . Terminal Hacks 4 | . 3 1 Robot Analysis 1 | . 1 . Open Door 1 | . . 1 Terminal Index 1 | . 1 . Unreport Threat 1 | . 1 . Fabricator Hacks . | . . . Repair Station Hacks . | . . . Recycling Unit Hacks . | . . . Scanalyzer . | . . . Garrison Access Hacks . | . . . Unauthorized Hacks 4 | . 4 . Terminals 4 | . 4 . Track 1 | . 1 . Botnet 2 | . 2 . Operators 1 | . 1 . Fabricators . | . . . Repair Stations . | . . . Recycling Units . | . . . Scanalyzers . | . . . Garrison Access . | . . . Data Cores Recovered . | . . . Used . | . . . Hacking Detections 4 | . 4 . Full Trace Events . | . . . Feedback Events . | . . . Feedback Blocked . | . . . Robot Schematics Acquired . | . . . Robots Built . | . . . Authchips . | . . . Time . | . . . Total Robot Build Rating . | . . . Part Schematics Acquired . | . . . Parts Built . | . . . Authchips . | . . . Time . | . . . Total Part Build Rating . | . . . Parts Repaired . | . . . Time . | . . . Parts Recycled . | . . . Recycled Matter . | . . . Retrieved Matter . | . . . Retrieved Components . | . . . Parts Scanalyzed . | . . . Part Schematics Acquired . | . . . Parts Damaged . | . . . Bothacking | -11 -10 -10 ------------ Run | Scr Mat Min Used RIF Installer . | . . . Robots Hacked . | . . . Non-combat . | . . . Combat . | . . . Robot Hacks Applied . | . . . Relay Couplers Released . | . . . Fabnet Peak Effective % . | . . . Robots Rewired . | . . . Allies Hacked . | . . . Hacks Repelled . | . . . Allies | -11 -10 -10 -------- Run | Scr Mat Min Total Allies . | . . . Largest Group . | . . . Highest-Rated Group . | . . . Highest-Rated Ally . | . . . Total Orders . | . . . Ally Attacks . | . . . Total Damage . | . . . Kills . | . . . Allies Corrupted . | . . . Allies Melted . | . . . Intel | -11 -10 -10 ------- Run | Scr Mat Min Robot Analysis Total 1 | . 1 . Derelict Logs Recovered 1 | . . 1 Drone Launches . | . . . Drone Recoveries . | . . . Exploration | -11 -10 -10 ------------- Run | Scr Mat Min Turns Passed 1113 | 148 437 528 Spaces Moved 579 | 74 214 291 Core 21 | 21 . . Treads 558 | 53 214 291 Legs . | . . . Wheels . | . . . Hover . | . . . Flight . | . . . Fastest Speed 50 | 50 160 160 Average Speed 156 | 128 160 160 Slowest Speed 160 | 160 160 160 Overloaded Moves . | . . . Propulsion Burnouts . | . . . Robots Hopped . | . . . Cave-ins Triggered . | . . . Exploration Rate (%) 41 | 4 45 74 Regions Visited 2 Branch Regions 1 Pre-discovered Areas 1 | . . 1 Known Exits Taken . | . . . Unknown Exits Taken 2 | 1 1 . Scrap Searched . | . . . Spaces Dug . | . . . Terrain Destroyed 24 | . 11 13 Melee . | . . . Projectile . | . . . AOE 24 | . 11 13 Terrain Rammed . | . . . Walls Destroyed . | . . . Machines Disabled . | . . . Actions | -11 -10 -10 --------- Run | Scr Mat Min Total 698 | 100 272 326 Wait 23 | . 18 5 Move 577 | 73 213 291 Hop . | . . . Pick Up 17 | 4 10 3 Fast Attach 7 | 4 3 . Attach 8 | 4 1 3 Detach 2 | 2 . . Swap 5 | . 3 2 Drop 8 | . 4 4 Fire 48 | 13 18 17 Melee . | . . . Ram . | . . . Kick . | . . . Crush 3 | . 2 1 Escape Stasis . | . . . Rewire . | . . . Trap . | . . . Miscellaneous . | . . . Route ------- -11/Scrapyard -10/Materials (discovered 2 exits: [*Mat] / *Min) -10/Mines (discovered 1 exit: [*Mat]) History --------- Turn | Location | Event 9 | -11/Scrapyard | Discovered new exit (range 14) 149 | -11/Scrapyard | Entered Materials 314 | -10/Materials | Build established: Mutant 318 | -10/Materials | Discovered new exit (range 10) 435 | -10/Materials | Discovered new exit (range 15) 445 | -10/Materials | Central database locked down 586 | -10/Materials | Entered Mines 644 | -10/Mines | Learned Materials stockpile data 697 | -10/Mines | Met a Derelict shopkeep closing up shop 993 | -10/Mines | Assembled infested the area 998 | -10/Mines | Assisted by a Guerilla fighting off Assembled 1033 | -10/Mines | Received a Rocket Launcher from a helpful Derelict 1058 | -10/Mines | Learned location of Storage (-7) 1059 | -10/Mines | Discovered new exit (range 8) 1106 | -10/Mines | Core integrity fell below 50% 1110 | -10/Mines | Core integrity fell below 20% 1114 | -10/Mines | Destroyed by D-53 Grenadier with Mini Grenade Launcher Last Messages --------------- 01033_ TD-WQY(g) slips back into the shadows. 01036_ Dropped Grenade Launcher. 01036_ Acquired Rocket Launcher. 01058_ A derelict emerges from the shadows: "Are any of them following you? I'm here trying to lose some heat after our second raid on Storage failed. Whatever you do stay away from that place, they've tightened security following our previous successful raids." World map updated: -7/Storage. 01059_ EXIT=FOUND 01060_ PP-X2N(g): "We scattered so the Unaware couldn't effectively use their advantage in numbers, and I suggest you do the same." 01060_ PP-X2N(g) slips back into the shadows. 01100_ U-05 Engineer destroyed. 01103_ Lgt. Treads destroyed. 01105_ Hvy. EM Pulse Gun destroyed. 01107_ The unstable cave ceiling collapses. 01110_ Lgt. Deuterium Engine destroyed. 01110_ D-53 Grenadier destroyed. 01112_ Lgt. Treads destroyed. 01113_ The unstable cave ceiling collapses. Map ----- +----------------------------------------------------+ | ?????# ##??????#==%* ##?????????? | | ????## #??????# #### ##????????? | | ???## #?????## #??## ##???????? | | ???# ##????## ##??## #???????? | | ???# ##????## ##??# #???????? | | ???# #????## ##?## ##??????? | | ???## ##???## ##?### ###???????? | | ????## #???## ##??# #?????##### | | ?????# #???# ##?# #????## | | ?????# #???# %### #?# %#???## #? | | ?????# ###### #?### ### %##### #? | | ?????# #?# #???## ## % #?? | | ?????#### #?# #????# ####### #?? | | ????????# #?# # #???## ####### ##? | | ????????# #?# # #???# ] #?## ## | | ??????### ### # #???# #??## | | ??????# # #???## #???# """ | | ??????# ######## #????## ########???# """ | | ?????## #???#??# #?????# #??????????# """ | | ????? ##?# ? #?????# #??????????## | | ??? %% # # ########??# #???????????### | | ?# % # #### #?????????????## | | ?## #??????????????## | | ??# % # ## #???###?????????? | | ??# d ## ##### ##????????? | | ?? @ ## ###??????? | | ?# # ####### ##?????? | | ?# #?????# ####### | | ?## % ##?????# ##"!# | | ??# ##??????## #" [ | | ??# ###### ???????## #"= | | ??## % ???????#### ??????# ##"! | | ???# #??????????# ?????# ###"* | | ????? ???????????# ????# < #######"!# | | ?????????????????? ???## ##?## #### | | ?????????????????? ????####?## ### | | ?????????????????? ##????????# | | ?????????????????? ##?????????# | | ?????????????????? ##??????????## | | ?????????????????? ##????????????###### | | ??????????????????###???????????????????## | | ?????????????????????????????????????????## | | ??????????????????????????????????????????? | | | | | | | | | | | | | | | +----------------------------------------------------+ Best States ------------- Heat Dissipation 25 Energy Generation 14 Energy Capacity 250 Matter Stores 300 Matter Capacity 300 Sight Range 16 Terrain Scan Density 10 Evasion (%) 50 Recoil Reduction 2 Offensive Hacking 10 Item Schematics ----------------- None Robot Schematics ------------------ None Fabricated ------------ Nothing Alien Tech Used ----------------- None Achievements -------------- None Challenges ------------ Unstable Evolution Game ------ Seed SurveybotBattleSuperbattery Manual? 0 Play Time 00:10:41 Cumulative 592.8 hours Start 2022.04.15 @ 22:33:10 End 2022.04.15 @ 22:43:26 Sessions 1 Manual Loads 0 Difficulty Rogue Special Mode None Game No. 298 Rogue 171 Adventurer 125 Explorer 2 Win Type - Total 56 Types 48/3/2/1/1/0/0/0/1 Lore% 73 Gallery% 85 Achievement% 69 Wizard Run 0 Options --------- ASCII 0 Keyboard 1 Movement Numpad Keybinds 0 Fullscreen 1 Font 36/TerminusFine Map View 76x50 Tactical HUD 1 Map Filters NONE Filters NONE Steam 1 RUN: 5525a441-691b-43ac-9a65-a28606c2a6e0